[Event "*** Titled Tuesday Blitz"]
[Site "Chess.com"]
[Date "2019.06.04"]
[Round "1"]
[White "1g41-0"]
[Black "mishanick"]
[Result "0-1"]
[WhiteElo "2499"]
[BlackElo "3020"]
[TimeControl "180+2"]
[EndTime "13:02:05 PDT"]
[Termination "mishanick won by resignation"]

1. e4 {[%clk 0:03:01.9]} 1... c5 {[%clk 0:02:57.4]} 2. Nf3 {[%clk 0:03:02.1]}
2... d6 {[%clk 0:02:59.1]} 3. d4 {[%clk 0:03:02.9]} 3... cxd4 {[%clk 0:03:01]}
4. Nxd4 {[%clk 0:03:04.8]} 4... Nf6 {[%clk 0:03:01.8]} 5. Nc3 {[%clk 0:03:06.4]}
5... a6 {[%clk 0:03:01]} 6. Bg5 {[%clk 0:03:07.5]} 6... Nbd7 {[%clk 0:03:01.3]}
7. Bc4 {[%clk 0:03:08.2]} 7... Qb6 {[%clk 0:03:01.8]} 8. Bb3 {[%clk 0:03:09.5]}
8... e6 {[%clk 0:03:02.3]} 9. Qd2 {[%clk 0:03:09.1]} 9... Be7 {[%clk 0:03:03.7]}
10. O-O-O {[%clk 0:03:09.9]} 10... Nc5 {[%clk 0:03:05.3]} 11. f3 {[%clk
0:03:11]} 11... Bd7 {[%clk 0:03:06.9]} 12. g4 {[%clk 0:03:12.1]} 12... Qc7
{[%clk 0:03:08.5]} 13. Be3 {[%clk 0:03:13.6]} 13... b5 {[%clk 0:03:10]} 14. a3
{[%clk 0:03:14]} 14... Rb8 {[%clk 0:03:09.8]} 15. g5 {[%clk 0:03:13.5]} 15...
Nh5 {[%clk 0:03:10.3]} 16. Kb1 {[%clk 0:02:59.4]} 16... a5 {[%clk 0:03:09.8]}
17. Nf5 {[%clk 0:03:00.7]} 17... exf5 {[%clk 0:03:06.7]} 18. Nd5 {[%clk
0:03:02.1]} 18... Qd8 {[%clk 0:03:08.1]} 19. exf5 {[%clk 0:02:57]} 19... Nxb3
{[%clk 0:03:06.9]} 20. cxb3 {[%clk 0:02:58.2]} 20... Bxf5+ {[%clk 0:03:06.5]}
21. Ka2 {[%clk 0:03:00.1]} 21... O-O {[%clk 0:03:08.1]} 22. Rhe1 {[%clk
0:02:58.8]} 22... Be6 {[%clk 0:03:09]} 23. f4 {[%clk 0:02:56.4]} 23... Re8
{[%clk 0:03:09.9]} 24. Qe2 {[%clk 0:02:50.1]} 24... g6 {[%clk 0:03:09.8]} 25.
Bd4 {[%clk 0:02:48.1]} 25... Bxd5 {[%clk 0:03:08.9]} 26. f5 {[%clk 0:02:45.9]}
0-1

[Event "*** Titled Tuesday Blitz"]
[Site "Chess.com"]
[Date "2019.06.04"]
[Round "1"]
[White "Gentlejimmy7"]
[Black "Zhuu96"]
[Result "0-1"]
[WhiteElo "2498"]
[BlackElo "2956"]
[TimeControl "180+2"]
[EndTime "13:02:08 PDT"]
[Termination "Zhuu96 won by resignation"]

1. d4 {[%clk 0:03:00.3]} 1... Nf6 {[%clk 0:02:59.9]} 2. Nf3 {[%clk 0:03:00.7]}
2... c5 {[%clk 0:03:00]} 3. dxc5 {[%clk 0:02:56.8]} 3... e6 {[%clk 0:03:00.9]}
4. c4 {[%clk 0:02:55.1]} 4... Bxc5 {[%clk 0:03:01.6]} 5. g3 {[%clk 0:02:56.6]}
5... b6 {[%clk 0:03:00.4]} 6. Bg2 {[%clk 0:02:57.3]} 6... Bb7 {[%clk 0:03:02]}
7. O-O {[%clk 0:02:58.8]} 7... O-O {[%clk 0:03:03]} 8. Nc3 {[%clk 0:03:00.1]}
8... a6 {[%clk 0:03:03]} 9. b3 {[%clk 0:03:00.2]} 9... Nc6 {[%clk 0:03:01.5]}
10. Bb2 {[%clk 0:03:00.2]} 10... Ne7 {[%clk 0:02:59.3]} 11. Qd2 {[%clk 0:02:56]}
11... d5 {[%clk 0:02:58.6]} 12. cxd5 {[%clk 0:02:57.2]} 12... Nexd5 {[%clk
0:02:57.4]} 13. Nxd5 {[%clk 0:02:58.4]} 13... Bxd5 {[%clk 0:02:58.5]} 14. Rfd1
{[%clk 0:02:58.9]} 14... Ne4 {[%clk 0:02:56.9]} 15. Qf4 {[%clk 0:02:44.8]} 15...
Nxf2 {[%clk 0:02:57.9]} 16. Rd4 {[%clk 0:02:27.5]} 16... Bxf3 {[%clk 0:02:54.8]}
17. Bxf3 {[%clk 0:02:21.5]} 17... Nh3+ {[%clk 0:02:54.7]} 0-1

[Event "*** Titled Tuesday Blitz"]
[Site "Chess.com"]
[Date "2019.06.04"]
[Round "1"]
[White "Tjktiger"]
[Black "slowdgehammer"]
[Result "1-0"]
[WhiteElo "2730"]
[BlackElo "2376"]
[TimeControl "180+2"]
[EndTime "13:02:16 PDT"]
[Termination "Tjktiger won by resignation"]

1. c4 {[%clk 0:02:30.4]} 1... Nf6 {[%clk 0:03:00.2]} 2. Nc3 {[%clk 0:02:31.3]}
2... e6 {[%clk 0:03:01.9]} 3. e4 {[%clk 0:02:32.3]} 3... d5 {[%clk 0:03:03.5]}
4. cxd5 {[%clk 0:02:34.2]} 4... exd5 {[%clk 0:03:04.6]} 5. e5 {[%clk 0:02:35.8]}
5... d4 {[%clk 0:03:00.2]} 6. exf6 {[%clk 0:02:36.4]} 6... dxc3 {[%clk
0:03:01.5]} 7. Bb5+ {[%clk 0:02:37.9]} 7... c6 {[%clk 0:03:01.5]} 8. Qe2+ {[%clk
0:02:39]} 8... Be6 {[%clk 0:03:02.1]} 9. Bc4 {[%clk 0:02:40.2]} 9... Qxf6 {[%clk
0:03:03.2]} 10. dxc3 {[%clk 0:02:40.8]} 10... Bc5 {[%clk 0:03:01.6]} 11. Bxe6
{[%clk 0:02:38.1]} 11... fxe6 {[%clk 0:03:01.8]} 12. Nf3 {[%clk 0:02:38.6]}
12... Nd7 {[%clk 0:03:02]} 13. O-O {[%clk 0:02:38.2]} 13... O-O {[%clk
0:03:00.1]} 14. Be3 {[%clk 0:02:36.8]} 14... Rae8 {[%clk 0:02:52.9]} 15. Rad1
{[%clk 0:02:36.9]} 15... Bb6 {[%clk 0:02:41.8]} 16. Rxd7 {[%clk 0:02:36.8]} 1-0

[Event "*** Titled Tuesday Blitz"]
[Site "Chess.com"]
[Date "2019.06.04"]
[Round "1"]
[White "raviteja81293"]
[Black "lexiel"]
[Result "1-0"]
[WhiteElo "2580"]
[BlackElo "2197"]
[TimeControl "180+2"]
[EndTime "13:03:18 PDT"]
[Termination "raviteja81293 won by resignation"]

1. d4 {[%clk 0:03:00.8]} 1... d6 {[%clk 0:03:00.5]} 2. Nf3 {[%clk 0:03:02]} 2...
Nf6 {[%clk 0:03:02]} 3. g3 {[%clk 0:03:02.6]} 3... Bf5 {[%clk 0:03:02.8]} 4. Bg2
{[%clk 0:03:03.9]} 4... c6 {[%clk 0:03:04.4]} 5. O-O {[%clk 0:03:05.3]} 5... h6
{[%clk 0:03:05.6]} 6. c4 {[%clk 0:03:06.9]} 6... Nbd7 {[%clk 0:03:06.6]} 7. Nc3
{[%clk 0:03:08.4]} 7... e5 {[%clk 0:03:07.3]} 8. Re1 {[%clk 0:03:04.3]} 8... Qc7
{[%clk 0:03:07.5]} 9. e4 {[%clk 0:03:05.1]} 9... Bh7 {[%clk 0:03:08.3]} 10. h3
{[%clk 0:03:06]} 10... Be7 {[%clk 0:03:09.2]} 11. Nh4 {[%clk 0:02:59.4]} 11...
O-O {[%clk 0:03:07]} 12. Nf5 {[%clk 0:03:00.2]} 12... Bxf5 {[%clk 0:03:07.8]}
13. exf5 {[%clk 0:03:02.1]} 13... Rfe8 {[%clk 0:03:08.6]} 14. Be3 {[%clk
0:03:00]} 14... exd4 {[%clk 0:03:07.8]} 15. Bxd4 {[%clk 0:03:00.3]} 15... Ne5
{[%clk 0:03:08.3]} 16. b3 {[%clk 0:03:00.2]} 16... Qa5 {[%clk 0:03:08.3]} 17.
Qc2 {[%clk 0:02:59.7]} 17... Rad8 {[%clk 0:03:08]} 18. Rad1 {[%clk 0:02:59.4]}
18... Bf8 {[%clk 0:03:06.6]} 19. g4 {[%clk 0:02:59.8]} 19... Nh7 {[%clk
0:03:02.4]} 20. Kh1 {[%clk 0:02:56.5]} 20... a6 {[%clk 0:03:01.5]} 21. Ne2
{[%clk 0:02:56.3]} 21... b5 {[%clk 0:02:58.7]} 22. f4 {[%clk 0:02:57.1]} 22...
c5 {[%clk 0:02:51.9]} 23. Bc3 {[%clk 0:02:35.2]} 23... b4 {[%clk 0:02:52.8]} 24.
fxe5 {[%clk 0:02:36.4]} 24... bxc3 {[%clk 0:02:53.4]} 25. e6 {[%clk 0:02:37.8]}
25... fxe6 {[%clk 0:02:49.7]} 26. fxe6 {[%clk 0:02:38.9]} 26... Nf6 {[%clk
0:02:50.3]} 27. Nxc3 {[%clk 0:02:39.8]} 27... Qc7 {[%clk 0:02:42.7]} 28. Nd5
{[%clk 0:02:40.5]} 28... Nxd5 {[%clk 0:02:43.4]} 29. Bxd5 {[%clk 0:02:40]} 29...
Be7 {[%clk 0:02:44.9]} 30. Rf1 {[%clk 0:02:41]} 30... Rf8 {[%clk 0:02:42.2]} 31.
Rf7 {[%clk 0:02:41.4]} 31... Rxf7 {[%clk 0:02:42.7]} 32. exf7+ {[%clk
0:02:41.8]} 32... Kh8 {[%clk 0:02:43.9]} 33. Qg6 {[%clk 0:02:42.6]} 33... Qa5
{[%clk 0:02:39.9]} 34. Be4 {[%clk 0:02:42.7]} 1-0

[Event "*** Titled Tuesday Blitz"]
[Site "Chess.com"]
[Date "2019.06.04"]
[Round "1"]
[White "Ruchess27"]
[Black "francyIM"]
[Result "1/2-1/2"]
[WhiteElo "2246"]
[BlackElo "2595"]
[TimeControl "180+2"]
[EndTime "13:03:35 PDT"]
[Termination "Game drawn by repetition"]

1. d4 {[%clk 0:02:59.7]} 1... Nf6 {[%clk 0:03:00.4]} 2. Nf3 {[%clk 0:02:58.6]}
2... e6 {[%clk 0:03:01.8]} 3. g3 {[%clk 0:02:58.7]} 3... d5 {[%clk 0:03:02.8]}
4. Bg2 {[%clk 0:03:00.3]} 4... Be7 {[%clk 0:03:03.7]} 5. O-O {[%clk 0:03:01.9]}
5... O-O {[%clk 0:03:05.2]} 6. b3 {[%clk 0:03:01.9]} 6... b6 {[%clk 0:03:05.3]}
7. Bb2 {[%clk 0:03:03.5]} 7... Bb7 {[%clk 0:03:07.2]} 8. Nbd2 {[%clk 0:03:04.2]}
8... c5 {[%clk 0:03:08.6]} 9. e3 {[%clk 0:03:05.1]} 9... Nc6 {[%clk 0:03:09.3]}
10. c4 {[%clk 0:03:05.1]} 10... dxc4 {[%clk 0:03:10.5]} 11. Nxc4 {[%clk
0:03:05.2]} 11... cxd4 {[%clk 0:03:11.6]} 12. Nxd4 {[%clk 0:03:05.8]} 12... Qc8
{[%clk 0:03:10.3]} 13. Rc1 {[%clk 0:02:57.7]} 13... Bc5 {[%clk 0:03:10.7]} 14.
Nxc6 {[%clk 0:02:49.7]} 14... Bxc6 {[%clk 0:03:12.6]} 15. Bxc6 {[%clk
0:02:48.8]} 15... Qxc6 {[%clk 0:03:14.5]} 16. Bxf6 {[%clk 0:02:18.1]} 16... gxf6
{[%clk 0:03:16.4]} 17. Qg4+ {[%clk 0:02:18.4]} 17... Kh8 {[%clk 0:03:16.8]} 18.
Qh4 {[%clk 0:02:05.3]} 18... Be7 {[%clk 0:03:15.8]} 19. Ne5 {[%clk 0:01:56.1]}
19... Qd5 {[%clk 0:03:13.1]} 20. Nc6 {[%clk 0:01:51.8]} 20... Bd8 {[%clk
0:03:09.8]} 21. Nxd8 {[%clk 0:01:36.5]} 21... Qxd8 {[%clk 0:03:08.7]} 22. Rfd1
{[%clk 0:01:34.9]} 22... Qe7 {[%clk 0:03:09.2]} 23. Rc7 {[%clk 0:01:30.8]} 23...
Qxc7 {[%clk 0:03:08.5]} 24. Qxf6+ {[%clk 0:01:30.8]} 24... Kg8 {[%clk 0:03:10]}
25. Qg5+ {[%clk 0:01:16.8]} 25... Kh8 {[%clk 0:03:10.5]} 26. Qf6+ {[%clk
0:01:18.4]} 26... Kg8 {[%clk 0:03:11.7]} 27. Qg5+ {[%clk 0:01:20]} 27... Kh8
{[%clk 0:03:12.8]} 28. Qf6+ {[%clk 0:01:21.1]} 1/2-1/2

[Event "*** Titled Tuesday Blitz"]
[Site "Chess.com"]
[Date "2019.06.04"]
[Round "1"]
[White "LuckIsMySkill"]
[Black "MathiasWomacka"]
[Result "1-0"]
[WhiteElo "2646"]
[BlackElo "2291"]
[TimeControl "180+2"]
[EndTime "13:03:58 PDT"]
[Termination "LuckIsMySkill won by resignation"]

1. Nf3 {[%clk 0:03:00.9]} 1... c5 {[%clk 0:02:58.2]} 2. g3 {[%clk 0:03:01.9]}
2... Nc6 {[%clk 0:02:58.5]} 3. Bg2 {[%clk 0:03:03.5]} 3... e5 {[%clk 0:03:00]}
4. O-O {[%clk 0:03:05.1]} 4... g6 {[%clk 0:03:00]} 5. Nc3 {[%clk 0:03:01.9]}
5... Bg7 {[%clk 0:03:00.1]} 6. a3 {[%clk 0:03:03.4]} 6... Nge7 {[%clk
0:02:59.8]} 7. b4 {[%clk 0:03:04.3]} 7... cxb4 {[%clk 0:02:46.8]} 8. axb4 {[%clk
0:03:05]} 8... Nxb4 {[%clk 0:02:47.7]} 9. Ba3 {[%clk 0:03:05.7]} 9... Nec6
{[%clk 0:02:48.6]} 10. Nb5 {[%clk 0:03:02.6]} 10... e4 {[%clk 0:02:43.7]} 11.
Nd6+ {[%clk 0:03:03.3]} 11... Kf8 {[%clk 0:02:44.6]} 12. Nxe4 {[%clk 0:03:04.5]}
12... d5 {[%clk 0:02:40.5]} 13. Nc5 {[%clk 0:02:59]} 13... Bxa1 {[%clk 0:02:30]}
14. Qxa1 {[%clk 0:02:58.3]} 14... Kg8 {[%clk 0:02:30.7]} 15. Bb2 {[%clk
0:02:51.6]} 15... d4 {[%clk 0:02:20.1]} 16. c3 {[%clk 0:02:48.8]} 16... Nd5
{[%clk 0:02:14.5]} 17. Nxd4 {[%clk 0:02:48]} 17... Nxd4 {[%clk 0:02:11.1]} 18.
cxd4 {[%clk 0:02:49.2]} 18... b6 {[%clk 0:02:11.9]} 19. e4 {[%clk 0:02:44.9]}
19... bxc5 {[%clk 0:02:11.8]} 20. dxc5 {[%clk 0:02:45.7]} 20... f6 {[%clk
0:01:39.8]} 21. exd5 {[%clk 0:02:44.4]} 21... Kg7 {[%clk 0:01:40.7]} 22. d6
{[%clk 0:02:43.4]} 22... Rb8 {[%clk 0:01:40.5]} 23. Qxa7+ {[%clk 0:02:43.6]}
23... Bd7 {[%clk 0:01:40.8]} 24. Bc3 {[%clk 0:02:41.8]} 1-0

[Event "*** Titled Tuesday Blitz"]
[Site "Chess.com"]
[Date "2019.06.04"]
[Round "1"]
[White "LoinOfTheNorth"]
[Black "Eliwood44"]
[Result "1-0"]
[WhiteElo "2680"]
[BlackElo "2344"]
[TimeControl "180+2"]
[EndTime "13:04:15 PDT"]
[Termination "LoinOfTheNorth won by resignation"]

1. d4 {[%clk 0:03:01.9]} 1... d5 {[%clk 0:02:58.9]} 2. c4 {[%clk 0:03:03.2]}
2... e6 {[%clk 0:02:59.7]} 3. Nf3 {[%clk 0:03:03.9]} 3... Nf6 {[%clk 0:03:00.5]}
4. g3 {[%clk 0:03:05.1]} 4... Be7 {[%clk 0:03:01.2]} 5. Bg2 {[%clk 0:03:06.6]}
5... O-O {[%clk 0:03:02.7]} 6. Nc3 {[%clk 0:03:07.2]} 6... dxc4 {[%clk
0:03:02.3]} 7. Ne5 {[%clk 0:03:08.2]} 7... c5 {[%clk 0:02:58.8]} 8. dxc5 {[%clk
0:03:07.5]} 8... Qxd1+ {[%clk 0:02:57.2]} 9. Nxd1 {[%clk 0:03:09.4]} 9... Bxc5
{[%clk 0:02:56.5]} 10. O-O {[%clk 0:03:10.6]} 10... Nc6 {[%clk 0:02:53.3]} 11.
Bxc6 {[%clk 0:03:09.7]} 11... bxc6 {[%clk 0:02:55.2]} 12. Be3 {[%clk 0:03:11.2]}
12... Bxe3 {[%clk 0:02:52]} 13. Nxe3 {[%clk 0:03:12]} 13... Rb8 {[%clk
0:02:49.8]} 14. N3xc4 {[%clk 0:03:12.4]} 14... Ba6 {[%clk 0:02:50.3]} 15. b3
{[%clk 0:03:11]} 15... Bxc4 {[%clk 0:02:44.4]} 16. Nxc4 {[%clk 0:03:11.5]} 16...
Nd5 {[%clk 0:02:41.4]} 17. f3 {[%clk 0:03:11.1]} 17... f5 {[%clk 0:02:34.5]} 18.
Kf2 {[%clk 0:03:11.7]} 18... f4 {[%clk 0:02:34.6]} 19. Rfc1 {[%clk 0:03:11.1]}
19... Rf5 {[%clk 0:02:05.5]} 20. g4 {[%clk 0:03:10.4]} 20... Rff8 {[%clk
0:02:04.6]} 21. Ne5 {[%clk 0:03:09.8]} 21... Nb4 {[%clk 0:01:54.2]} 22. Nd7
{[%clk 0:03:09.8]} 22... Rbd8 {[%clk 0:01:52]} 23. Nxf8 {[%clk 0:03:11.1]} 23...
Kxf8 {[%clk 0:01:53.2]} 24. Rd1 {[%clk 0:03:12.4]} 24... Re8 {[%clk 0:01:54.3]}
25. a3 {[%clk 0:03:11.1]} 25... Nd5 {[%clk 0:01:55.1]} 26. Rac1 {[%clk
0:03:11.4]} 26... Rc8 {[%clk 0:01:56.1]} 27. Rd4 {[%clk 0:03:08.3]} 27... Ke7
{[%clk 0:01:57]} 28. Rdc4 {[%clk 0:03:09]} 28... Kd6 {[%clk 0:01:57.9]} 29. b4
{[%clk 0:03:10.2]} 29... g5 {[%clk 0:01:57]} 30. h4 {[%clk 0:03:08.2]} 30... h6
{[%clk 0:01:57.7]} 31. hxg5 {[%clk 0:03:09.4]} 31... hxg5 {[%clk 0:01:59.6]} 32.
Rh1 {[%clk 0:03:11]} 32... a5 {[%clk 0:01:58]} 33. bxa5 {[%clk 0:03:11.3]} 33...
Ra8 {[%clk 0:01:59]} 34. Rh5 {[%clk 0:03:07.8]} 34... Rxa5 {[%clk 0:01:57.4]}
35. a4 {[%clk 0:03:09.2]} 35... Ne3 {[%clk 0:01:56.8]} 36. Rxf4 {[%clk
0:03:08.8]} 36... Nd1+ {[%clk 0:01:50.6]} 37. Ke1 {[%clk 0:03:09.7]} 37... Nc3
{[%clk 0:01:51.7]} 38. Rd4+ {[%clk 0:03:08.7]} 38... Kc7 {[%clk 0:01:51.5]} 39.
f4 {[%clk 0:03:08]} 39... e5 {[%clk 0:01:44.7]} 40. Rxg5 {[%clk 0:03:04.2]} 1-0

[Event "*** Titled Tuesday Blitz"]
[Site "Chess.com"]
[Date "2019.06.04"]
[Round "1"]
[White "Komissarov_alex"]
[Black "jk13"]
[Result "0-1"]
[WhiteElo "2105"]
[BlackElo "2540"]
[TimeControl "180+2"]
[EndTime "13:04:20 PDT"]
[Termination "jk13 won by resignation"]

1. d4 {[%clk 0:03:01]} 1... Nf6 {[%clk 0:03:00.1]} 2. Bf4 {[%clk 0:02:56.2]}
2... e6 {[%clk 0:03:00.9]} 3. e3 {[%clk 0:02:55.3]} 3... d5 {[%clk 0:03:02.8]}
4. Nd2 {[%clk 0:02:53.6]} 4... Bd6 {[%clk 0:03:04.4]} 5. Bg3 {[%clk 0:02:31.5]}
5... O-O {[%clk 0:03:05.3]} 6. Ngf3 {[%clk 0:02:28.1]} 6... b6 {[%clk
0:03:06.8]} 7. Ne5 {[%clk 0:02:27.3]} 7... Ba6 {[%clk 0:03:07.5]} 8. Nc6 {[%clk
0:02:21.3]} 8... Qe8 {[%clk 0:03:00.8]} 9. Nxb8 {[%clk 0:02:08.6]} 9... Bxf1
{[%clk 0:03:01]} 10. Nxf1 {[%clk 0:02:07.3]} 10... Rxb8 {[%clk 0:03:02]} 11. Nd2
{[%clk 0:02:05.8]} 11... Qb5 {[%clk 0:03:00.7]} 12. b3 {[%clk 0:02:01.5]} 12...
Bb4 {[%clk 0:03:00.3]} 13. Qe2 {[%clk 0:01:56.7]} 13... Qa5 {[%clk 0:02:58.4]}
14. f3 {[%clk 0:01:35.8]} 14... Rbc8 {[%clk 0:02:56]} 15. a3 {[%clk 0:01:04.8]}
15... Bc3 {[%clk 0:02:55.5]} 16. Ra2 {[%clk 0:01:02.8]} 16... c5 {[%clk
0:02:54.3]} 17. Kd1 {[%clk 0:01:00.9]} 17... cxd4 {[%clk 0:02:53.4]} 18. b4
{[%clk 0:00:54.5]} 18... Qa4 {[%clk 0:02:42.4]} 19. Be5 {[%clk 0:00:43.7]} 19...
d3 {[%clk 0:02:40.8]} 0-1

[Event "*** Titled Tuesday Blitz"]
[Site "Chess.com"]
[Date "2019.06.04"]
[Round "1"]
[White "bugsbunny444"]
[Black "jefferyx"]
[Result "1-0"]
[WhiteElo "2502"]
[BlackElo "2891"]
[TimeControl "180+2"]
[EndTime "13:04:29 PDT"]
[Termination "bugsbunny444 won by resignation"]

1. Nf3 {[%clk 0:03:01.8]} 1... d5 {[%clk 0:02:45.6]} 2. c4 {[%clk 0:03:02.6]}
2... d4 {[%clk 0:02:46.7]} 3. b4 {[%clk 0:03:03]} 3... Bg4 {[%clk 0:02:43.3]} 4.
d3 {[%clk 0:03:02.1]} 4... e6 {[%clk 0:02:32.5]} 5. a3 {[%clk 0:02:56.7]} 5...
a5 {[%clk 0:02:33.5]} 6. b5 {[%clk 0:02:57.3]} 6... Nf6 {[%clk 0:02:32.9]} 7. g3
{[%clk 0:02:56.7]} 7... Bxf3 {[%clk 0:02:13.4]} 8. exf3 {[%clk 0:02:57.6]} 8...
a4 {[%clk 0:02:15.3]} 9. Bg2 {[%clk 0:02:56.7]} 9... Nbd7 {[%clk 0:02:16.7]} 10.
Bd2 {[%clk 0:02:43.9]} 10... Nc5 {[%clk 0:02:18.6]} 11. Bb4 {[%clk 0:02:43.9]}
11... Nb3 {[%clk 0:02:20.1]} 12. Ra2 {[%clk 0:02:41]} 12... Bxb4+ {[%clk
0:02:21.2]} 13. axb4 {[%clk 0:02:42.2]} 13... Qe7 {[%clk 0:02:23.1]} 14. Qxb3
{[%clk 0:02:16.8]} 14... axb3 {[%clk 0:02:25]} 15. Rxa8+ {[%clk 0:02:17.8]}
15... Kd7 {[%clk 0:02:26.9]} 16. Rxh8 {[%clk 0:02:19]} 16... Qxb4+ {[%clk
0:02:28.8]} 17. Ke2 {[%clk 0:02:15.3]} 17... Qa4 {[%clk 0:01:24.2]} 18. Nd2
{[%clk 0:02:00.1]} 18... b2 {[%clk 0:01:25.6]} 19. Rb1 {[%clk 0:01:50]} 19...
Qa2 {[%clk 0:01:26.4]} 20. f4 {[%clk 0:01:43.1]} 20... Ke7 {[%clk 0:01:27.6]}
21. Bxb7 {[%clk 0:01:40]} 21... Nd7 {[%clk 0:01:28.8]} 22. Ra8 {[%clk
0:01:39.3]} 1-0

[Event "*** Titled Tuesday Blitz"]
[Site "Chess.com"]
[Date "2019.06.04"]
[Round "1"]
[White "Fighter008"]
[Black "guillembaches"]
[Result "1-0"]
[WhiteElo "2648"]
[BlackElo "2300"]
[TimeControl "180+2"]
[EndTime "13:04:35 PDT"]
[Termination "Fighter008 won by resignation"]

1. Nf3 {[%clk 0:03:01.9]} 1... Nf6 {[%clk 0:03:00.2]} 2. g3 {[%clk 0:03:03.5]}
2... d5 {[%clk 0:03:00.3]} 3. Bg2 {[%clk 0:03:05]} 3... e6 {[%clk 0:03:01.1]} 4.
O-O {[%clk 0:03:06.6]} 4... Be7 {[%clk 0:03:02.2]} 5. d3 {[%clk 0:03:08.1]} 5...
O-O {[%clk 0:03:02.8]} 6. Nbd2 {[%clk 0:03:09.6]} 6... c5 {[%clk 0:03:03.7]} 7.
b3 {[%clk 0:03:10.9]} 7... Nc6 {[%clk 0:03:04.2]} 8. Bb2 {[%clk 0:03:12.4]} 8...
b5 {[%clk 0:03:05]} 9. a4 {[%clk 0:03:12.5]} 9... b4 {[%clk 0:03:05.7]} 10. e4
{[%clk 0:03:13.4]} 10... dxe4 {[%clk 0:03:00.4]} 11. dxe4 {[%clk 0:03:14]} 11...
Ba6 {[%clk 0:02:58]} 12. Re1 {[%clk 0:03:14.9]} 12... Nd7 {[%clk 0:02:52.4]} 13.
Bf1 {[%clk 0:03:03.1]} 13... Bxf1 {[%clk 0:02:47.1]} 14. Rxf1 {[%clk 0:03:02.4]}
14... Na5 {[%clk 0:02:30.9]} 15. Qe2 {[%clk 0:02:59.4]} 15... Nb6 {[%clk
0:02:27.3]} 16. Rad1 {[%clk 0:02:59.1]} 16... Qc7 {[%clk 0:02:26.3]} 17. e5
{[%clk 0:02:57.8]} 17... c4 {[%clk 0:02:20.7]} 18. Ne4 {[%clk 0:02:58.4]} 18...
cxb3 {[%clk 0:02:13.6]} 19. cxb3 {[%clk 0:02:58.4]} 19... Nxb3 {[%clk
0:02:13.1]} 20. Nf6+ {[%clk 0:02:44.9]} 20... Bxf6 {[%clk 0:01:39.1]} 21. exf6
{[%clk 0:02:46.8]} 21... Qc4 {[%clk 0:01:40]} 22. Qe3 {[%clk 0:02:40.2]} 22...
h6 {[%clk 0:00:46.9]} 23. fxg7 {[%clk 0:02:33.2]} 1-0

[Event "*** Titled Tuesday Blitz"]
[Site "Chess.com"]
[Date "2019.06.04"]
[Round "1"]
[White "Zarikovs1999"]
[Black "Simoncelli15"]
[Result "1-0"]
[WhiteElo "2627"]
[BlackElo "2266"]
[TimeControl "180+2"]
[EndTime "13:05:06 PDT"]
[Termination "Zarikovs1999 won by resignation"]

1. e4 {[%clk 0:02:52.7]} 1... e6 {[%clk 0:03:00.4]} 2. d4 {[%clk 0:02:51.8]}
2... d5 {[%clk 0:03:02]} 3. Bd3 {[%clk 0:02:53.1]} 3... dxe4 {[%clk 0:03:02.7]}
4. Bxe4 {[%clk 0:02:55]} 4... Nf6 {[%clk 0:03:04.3]} 5. Bf3 {[%clk 0:02:56.4]}
5... c5 {[%clk 0:03:05.9]} 6. Ne2 {[%clk 0:02:57.9]} 6... Nc6 {[%clk 0:03:07.6]}
7. Be3 {[%clk 0:02:57.9]} 7... cxd4 {[%clk 0:03:04]} 8. Nxd4 {[%clk 0:02:59.8]}
8... Ne5 {[%clk 0:03:04.4]} 9. O-O {[%clk 0:02:59.9]} 9... a6 {[%clk 0:03:02.6]}
10. Nc3 {[%clk 0:02:46.6]} 10... Bd6 {[%clk 0:03:00.3]} 11. Bg5 {[%clk
0:02:38.3]} 11... h6 {[%clk 0:02:44.9]} 12. Bf4 {[%clk 0:02:32.9]} 12... O-O
{[%clk 0:02:19.8]} 13. Bg3 {[%clk 0:02:28.3]} 13... Qe7 {[%clk 0:02:01.5]} 14.
Re1 {[%clk 0:02:26]} 14... Nxf3+ {[%clk 0:01:50.5]} 15. Qxf3 {[%clk 0:02:27.9]}
15... Rd8 {[%clk 0:01:49.7]} 16. Nf5 {[%clk 0:02:22.4]} 16... exf5 {[%clk
0:01:47.7]} 17. Rxe7 {[%clk 0:02:22.8]} 17... Bxe7 {[%clk 0:01:49.6]} 18. Re1
{[%clk 0:02:19.2]} 18... Bf8 {[%clk 0:01:37.4]} 19. Be5 {[%clk 0:02:14.7]} 19...
Re8 {[%clk 0:01:32.2]} 20. Re2 {[%clk 0:02:05.7]} 20... Ng4 {[%clk 0:01:21.3]}
21. Bd4 {[%clk 0:02:02.2]} 21... Rxe2 {[%clk 0:01:21.9]} 22. Qxe2 {[%clk
0:02:00.6]} 22... Be6 {[%clk 0:01:22.9]} 23. h3 {[%clk 0:01:58.9]} 23... Rd8
{[%clk 0:01:23]} 24. Bb6 {[%clk 0:01:50.9]} 1-0